bitfinex/quotes_SOLUSD_20250429
["timestamp","ask_amount","ask_price","bid_price","bid_amount"]
[1745909153480,0.03,148.08,148.05,11.2545062]
[1745909154809,0.03,148.08,148.07,11.2545062]
[1745909155191,0.03,148.08,148.07,29.90415506]
[1745909155510,0.03,148.09,148.07,116.99315506]
[1745909155813,0.03,148.09,148.08,12.60458823]
[1745909156909,0.03,148.09,148.08,19.35769465]
[1745909158219,0.03,148.09,148.08,38.00734351]
[1745909162993,0.03,148.1,148.08,38.00734351]
[1745909163195,0.03,148.1,148.09,11.2545062]
[1745909164626,0.03,148.1,148.09,18.00715661]
[1745909165201,0.03,148.1,148.09,36.65680547]
[1745909165728,0.03,148.1,148.09,6.75265041]
[1745909165897,0.03,148.1,148.09,18.00715661]
[1745909172827,0.03,148.1,148.09,11.2545062]
[1745909173426,0.03,148.1,148.09,18.00715661]
[1745909179414,0.03,148.1,148.08,18.00742674]
[1745909180135,0.03,148.1,148.09,11.2545062]
[1745909180846,0.03,148.1,148.09,18.00715661]
[1745909185024,0.03,148.1,148.09,36.65680547]
[1745909186150,0.03,148.12,148.1,18.64964886]
[1745909186444,0.03,148.12,148.11,26.28442777]
[1745909187026,0.03,148.12,148.11,56.18858283]
[1745909187230,1e-08,148.12,148.11,56.18858283]
[1745909187637,1e-08,148.12,148.11,33.67957043]
[1745909187837,1e-08,148.12,148.11,44.93407663]
[1745909188247,1e-08,148.12,148.11,51.6858152]
[1745909191349,1e-08,148.12,148.11,33.03616634]
[1745909193555,1e-08,148.12,148.11,51.6858152]
[1745909194054,1e-08,148.12,148.11,62.9403214]
[1745909196357,1e-08,148.12,148.11,51.6858152]
[1745909200761,1e-08,148.12,148.11,33.03616634]
[1745909200955,1e-08,148.12,148.11,13.68]
[1745909201156,11.25450621,148.12,148.09,6.75250904]
[1745909201458,11.25450621,148.12,148.07,13.68]
[1745909201663,12.9088062,148.11,148.07,24.9345062]
[1745909201841,12.9088062,148.11,148.07,31.68792652]
[1745909202046,1.6543,148.11,148.08,11.2545062]
[1745909203258,1e-08,148.12,148.1,11.2545062]
[1745909203457,1e-08,148.12,148.11,11.2545062]
[1745909203764,1e-08,148.12,148.11,19.35630246]
[1745909204461,1e-08,148.12,148.11,38.00595132]
[1745909207167,1e-08,148.12,148.11,49.26045752]
[1745909207368,1e-08,148.12,148.11,75.26045752]
[1745909207956,1e-08,148.12,148.11,156.16045752]
[1745909208174,1e-08,148.13,148.12,18.64964886]
[1745909208343,1e-08,148.13,148.12,41.15866126]
[1745909208852,1e-08,148.13,148.12,47.909944]
[1745909209267,1e-08,148.13,148.12,49.25957226]
[1745909212070,1e-08,148.13,148.12,130.15957226]
[1745909213958,1e-08,148.13,148.12,118.90506606]
[1745909217387,1e-08,148.13,148.12,107.65055986]
[1745909217570,1e-08,148.13,148.12,118.90506606]
[1745909217775,1e-08,148.13,148.12,130.15957226]
[1745909218685,1e-08,148.13,148.12,118.90506606]
[1745909221164,1e-08,148.13,148.12,18.00578894]
[1745909221470,1e-08,148.13,148.12,6.75128274]
[1745909221674,1e-08,148.13,148.12,18.00578894]
[1745909227304,1e-08,148.13,148.12,47.909944]
[1745909227703,1e-08,148.13,148.12,36.6554378]
[1745909232393,1e-08,148.13,148.12,18.00578894]
[1745909235531,1e-08,148.13,148.12,6.75128274]
[1745909235823,1e-08,148.13,148.12,18.00578894]
[1745909237925,12.88960621,148.13,148.08,24.9145062]
[1745909238213,11.2545062,148.12,148.08,24.9145062]
[1745909239931,11.2545062,148.12,148.09,6.75265041]
[1745909242333,12.88960621,148.13,148.09,18.00715661]
[1745909242537,1.63510001,148.13,148.1,11.2545062]
[1745909243199,1.63510001,148.13,148.09,6.75265041]
[1745909243406,11.2545062,148.12,148.08,31.66745091]
[1745909244934,11.2545062,148.12,148.08,13.66]
[1745909245239,11.2545062,148.11,148.07,18.0078962]
[1745909245427,11.2545062,148.09,148.06,6.81686073]
[1745909247226,11.2545062,148.09,148.06,18.07136693]
[1745909247727,11.2545062,148.1,148.06,18.07136693]
[1745909248827,11.2545062,148.11,148.07,11.2545062]
[1745909249528,11.2545062,148.1,148.06,18.07136693]
[1745909250626,11.2545062,148.09,148.06,0.063]
[1745909252324,11.2545062,148.1,148.06,11.3175062]
[1745909253818,11.2545062,148.1,148.06,18.07152003]
[1745909254016,89.6514666,148.12,148.06,0.063]
[1745909254017,11.2545062,148.09,148.06,0.063]
[1745909261416,6.75185942,148.11,148.06,0.063]
[1745909261822,11.2545062,148.1,148.06,0.063]
[1745909262516,11.2545062,148.09,148.06,0.063]
[1745909266040,11.2545062,148.08,148.06,0.063]
[1745909266341,11.2545062,148.07,148.06,0.063]
[1745909270118,11.2545062,148.09,148.06,0.063]
[1745909271842,94.1545062,148.1,148.06,0.063]
[1745909272740,11.2545062,148.09,148.06,0.063]
[1745909276229,11.2545062,148.1,148.06,11.3175062]
[1745909276622,84.5517,148.12,148.06,11.3175062]
[1745909276837,11.2545062,148.1,148.06,11.3175062]
[1745909277841,11.2545062,148.1,148.07,6.7535625]
[1745909280323,11.2545062,148.09,148.07,6.7535625]
[1745909280936,11.2545062,148.09,148.06,6.81683696]
[1745909282248,102.55755126,148.12,148.06,6.81683696]
[1745909282548,84.5517,148.12,148.06,6.81683696]
[1745909282742,11.2545062,148.09,148.06,6.81683696]
[1745909292534,11.2545062,148.08,148.06,0.063]
[1745909292744,11.2545062,148.07,148.06,0.063]
[1745909293437,19.5092687,148.07,148.06,0.063]
[1745909293858,8.2547625,148.07,148.06,0.063]
[1745909294064,12.7557062,148.07,148.06,0.063]
[1745909298561,19.5092687,148.07,148.06,0.063]
[1745909299166,30.7637749,148.07,148.06,0.063]
[1745909299341,49.41342376,148.07,148.05,0.063]
[1745909299547,22.5090124,148.06,148.05,0.063]
[1745909300767,29.26303104,148.06,148.05,0.063]
[1745909301779,46.14807764,148.06,148.03,0.063]
[1745909302074,11.2545062,148.04,148.03,0.063]
[1745909305664,11.2545062,148.06,148.03,0.063]
[1745909305970,11.2545062,148.05,148.03,0.063]
[1745909309352,11.2545062,148.06,148.03,0.063]
[1745909310464,11.2545062,148.07,148.03,11.3175062]
[1745909310662,24.9145062,148.09,148.06,11.2545062]
[1745909310857,11.2545062,148.09,148.06,11.2545062]
[1745909314376,8.40554001,148.11,148.06,11.2545062]
[1745909314578,11.2545062,148.1,148.06,11.2545062]
[1745909315283,11.2545062,148.1,148.06,18.00844946]
[1745909315659,11.2545062,148.11,148.07,11.2545062]
[1745909316883,11.2545062,148.1,148.06,11.2545062]
[1745909319187,11.2545062,148.09,148.05,18.00862671]
[1745909320877,11.2545062,148.1,148.06,11.2545062]
[1745909321784,11.2545062,148.09,148.05,11.2545062]
[1745909323067,11.2545062,148.09,148.05,18.0087528]
[1745909324089,11.2545062,148.09,148.04,6.75493109]
[1745909324290,11.2545062,148.09,148.05,11.2545062]
[1745909325168,11.2545062,148.09,148.05,18.00875139]
[1745909325995,11.2545062,148.09,148.05,11.2545062]
[1745909326992,11.2545062,148.09,148.05,18.00892628]
[1745909331683,11.2545062,148.09,148.05,6.75442008]
[1745909332400,6.7522899,148.1,148.04,6.75475697]
[1745909332597,11.2545062,148.06,148.03,0.063]
[1745909333497,11.2545062,148.07,148.03,0.063]
[1745909334088,11.2545062,148.08,148.03,11.3175062]
[1745909334302,11.2545062,148.08,148.04,11.2545062]
[1745909334985,11.2545062,148.08,148.03,11.3175062]
[1745909335500,89.65278659,148.09,148.03,18.07275848]
[1745909335501,11.2545062,148.07,148.03,18.07275848]
[1745909335900,11.2545062,148.08,148.03,18.07275848]
[1745909337407,82.9,148.09,148.03,0.063]
[1745909337575,11.2545062,148.04,148.03,0.063]
[1745909339496,18.00943729,148.04,148.03,0.063]
[1745909341199,36.65908615,148.04,148.03,0.063]
[1745909341404,36.65908615,148.04,148.02,0.063]
[1745909341610,24.9145062,148.03,148.02,0.063]
[1745909342601,31.66989362,148.03,148.02,0.063]
[1745909343212,13.66,148.03,148.02,0.063]
[1745909343508,11.2545062,148.03,148.02,0.063]
[1745909348599,18.00989362,148.03,148.02,0.063]
[1745909348993,6.75538742,148.03,148.02,0.063]
[1745909349292,18.00989362,148.03,148.02,0.063]
[1745909349487,6.75500301,148.04,148.02,0.063]
[1745909349799,11.2545062,148.03,148.02,0.063]
[1745909358424,89.65500301,148.04,148.02,0.063]
[1745909358725,11.2545062,148.03,148.02,0.063]
[1745909358913,82.9,148.04,148.02,0.063]
[1745909359105,94.1545062,148.04,148.02,0.063]
[1745909359300,11.2545062,148.03,148.02,0.063]
[1745909364224,18.00989362,148.03,148.02,0.063]
[1745909364523,100.90989362,148.03,148.02,0.063]
[1745909365027,18.00989362,148.03,148.02,0.063]
[1745909365329,18.64964886,148.02,148.0,0.063]
[1745909365518,31.67080644,148.01,148.0,0.063]
[1745909376946,50.3204553,148.01,148.0,0.063]
[1745909377352,18.64964886,148.0,147.99,0.063]
[1745909377522,41.15866126,148.0,147.99,0.063]
[1745909377716,11.2545062,148.0,147.99,0.063]
[1745909379046,18.01126295,148.0,147.99,0.063]
[1745909383137,6.75675675,148.0,147.99,0.063]
[1745909383331,18.01126295,148.0,147.99,0.063]
[1745909390824,47.91541801,148.0,147.99,0.063]
[1745909391024,18.01126295,148.0,147.99,0.063]
[1745909393653,29.26576915,148.0,147.99,0.063]
[1745909394155,18.01126295,148.0,147.99,0.063]
[1745909396645,11.2545062,148.0,147.99,0.063]
[1745909396853,6.75556757,148.03,147.99,0.063]
[1745909397037,13.66,148.05,147.99,11.3175062]
[1745909397237,11.2545062,148.03,147.99,11.3175062]
[1745909398450,11.2545062,148.03,147.99,18.07441562]
[1745909399660,82.9,148.04,147.99,18.07441562]
[1745909399863,11.2545062,148.03,147.99,18.07441562]
[1745909400866,11.2545062,148.01,147.99,0.063]
[1745909401166,11.2545062,148.0,147.99,0.063]
[1745909401737,11.2545062,148.01,147.99,0.063]
[1745909401946,82.9,148.03,148.0,11.2545062]
[1745909402659,82.9,148.03,148.0,18.01124601]
[1745909402961,11.2545062,148.04,148.0,18.01124601]
[1745909403458,11.2545062,148.03,147.99,18.07454782]
[1745909405563,11.2545062,148.04,148.0,11.2545062]
[1745909406768,11.2545062,148.04,148.0,18.01110319]
[1745909407851,96.56,148.05,148.0,18.01110319]
[1745909408047,0.03,148.06,148.02,11.2545062]
[1745909408251,11.2845062,148.06,148.02,11.2545062]
[1745909409166,11.2545062,148.05,148.01,11.2545062]
[1745909409570,11.2545062,148.05,148.01,18.01060104]
[1745909411768,0.03,148.06,148.03,11.2545062]
[1745909411969,0.03,148.06,148.02,11.2545062]
[1745909411970,11.2845062,148.06,148.02,11.2545062]
[1745909413056,0.03,148.06,148.02,18.01015139]
[1745909413256,0.03,148.06,148.03,11.2545062]
[1745909415049,0.03,148.06,148.03,18.00979593]
[1745909416273,11.2845062,148.06,148.03,6.75528973]
[1745909422382,0.03,148.06,148.03,18.00979593]
[1745909423857,11.2845062,148.06,148.01,6.75630024]
[1745909424063,11.2845062,148.06,148.02,11.2545062]
[1745909424758,11.2545062,148.04,148.01,6.75630024]
[1745909425176,11.2545062,148.05,148.01,18.01080644]
[1745909426184,11.2845062,148.06,148.02,11.2545062]
[1745909426374,11.2845062,148.06,148.04,11.2545062]
[1745909426375,0.03,148.06,148.04,11.2545062]
[1745909427587,0.03,148.06,148.04,18.00941786]
[1745909432893,0.03,148.06,148.04,6.75491166]
[1745909434895,0.03,148.06,148.04,18.00941786]
[1745909435188,0.03,148.06,148.05,12.60528764]
[1745909435371,0.03,148.06,148.05,19.07578764]
[1745909438196,0.03,148.06,148.05,25.83026247]
[1745909440498,0.03,148.06,148.05,44.47991133]
[1745909440792,1e-08,148.06,148.05,138.21301753]
[1745909440998,1e-08,148.06,148.05,136.86223609]
[1745909442496,0.03,148.09,148.08,29.90415506]
[1745909442702,0.03,148.09,148.08,31.25433932]
[1745909444700,0.03,148.09,148.08,38.00744574]
[1745909455200,0.03,148.1,148.08,118.90744574]
[1745909455384,0.03,148.1,148.09,24.8745062]
[1745909457410,0.03,148.1,148.09,31.62715661]
[1745909460710,0.03,148.1,148.09,18.00715661]
[1745909464632,0.03,148.1,148.09,6.75265041]
[1745909464803,0.03,148.1,148.09,18.00715661]
[1745909465338,0.03,148.1,148.09,6.75265041]
[1745909465540,0.03,148.1,148.09,18.00715661]
[1745909466241,11.2845062,148.1,148.07,6.7535625]
[1745909466543,0.03,148.1,148.07,11.2545062]
[1745909467535,0.03,148.1,148.08,11.2545062]
[1745909467828,0.03,148.1,148.09,11.2545062]
[1745909468033,0.03,148.1,148.07,11.2545062]
[1745909468239,0.03,148.1,148.07,6.75319177]
[1745909468441,11.2845062,148.1,148.07,6.75319177]
[1745909469716,11.2845062,148.1,148.06,20.37390344]
[1745909469943,11.2545062,148.09,148.06,20.37390344]
[1745909470114,11.2545062,148.09,148.06,6.75390344]
[1745909473414,12.9291062,148.1,148.06,6.75390344]
[1745909474917,1.6746,148.1,148.06,6.75390344]
[1745909475134,1.6746,148.1,148.06,18.00840964]
[1745909475337,12.9291062,148.1,148.06,18.00840964]
[1745909479325,11.2545062,148.09,148.06,6.75390344]
[1745909479920,11.2545062,148.07,148.05,6.75446568]
[1745909480116,11.2545062,148.06,148.02,13.62]
[1745909480335,11.2545062,148.05,148.02,13.62]
[1745909480955,11.2545062,148.06,148.03,6.75522246]
[1745909482176,11.2545062,148.08,148.04,11.2545062]
[1745909482359,1.6746,148.1,148.05,11.2545062]
[1745909482668,12.9291062,148.1,148.06,11.2545062]
[1745909483345,11.2545062,148.09,148.05,11.2545062]
[1745909483739,11.2545062,148.09,148.03,23.64369101]
[1745909483940,11.2545062,148.09,148.05,11.2545062]
[1745909484352,11.2545062,148.09,148.06,6.75401864]
[1745909484556,11.2545062,148.08,148.05,6.75430142]
[1745909484757,11.2545062,148.07,148.04,6.75484448]
[1745909485748,11.2545062,148.07,148.03,6.75538742]
[1745909486567,11.2545062,148.06,148.03,6.75538742]
[1745909487439,11.2545062,148.07,148.03,18.00989362]
[1745909487846,11.2545062,148.08,148.03,18.00989362]
[1745909489066,11.2545062,148.06,148.02,101.27566271]
[1745909489251,8.42682783,148.1,148.02,101.27566271]
[1745909489252,11.2545062,148.05,148.02,101.27566271]
[1745909490552,11.2545062,148.05,148.02,20.37566271]
[1745909490866,11.2545062,148.05,148.02,6.75566271]
[1745909492770,11.2545062,148.05,148.01,44.01068345]
[1745909495169,11.2545062,148.06,148.02,11.2545062]
[1745909496976,11.2545062,148.07,148.02,11.2545062]
[1745909497149,11.2545062,148.07,148.03,6.75538742]
[1745909498751,11.2545062,148.06,148.03,6.75538742]
[1745909499751,11.2545062,148.07,148.03,11.2545062]
[1745909500146,1.6746,148.1,148.05,11.2545062]
[1745909500364,11.2545062,148.09,148.05,11.2545062]
[1745909500870,1.6746,148.1,148.05,11.2545062]
[1745909501175,11.2545062,148.09,148.05,11.2545062]
[1745909501477,11.2545062,148.09,148.06,6.75401864]
[1745909502969,12.9291062,148.1,148.06,11.2545062]
[1745909503273,12.9291062,148.1,148.04,6.75493109]
[1745909503274,11.2545062,148.09,148.05,11.2545062]
[1745909503879,12.9291062,148.1,148.06,11.2545062]
[1745909504376,11.2545062,148.09,148.04,6.75493109]
[1745909504573,11.2545062,148.09,148.05,11.2545062]
[1745909505072,11.2545062,148.09,148.05,18.00852709]
[1745909505676,0.03,148.1,148.06,11.2545062]
[1745909505866,0.03,148.1,148.08,11.2545062]
[1745909506455,0.03,148.1,148.09,11.2545062]
[1745909507768,0.03,148.1,148.09,18.00715661]
[1745909510671,0.03,148.1,148.09,6.75265041]
[1745909510867,0.03,148.1,148.09,18.00715661]
[1745909514688,0.03,148.1,148.09,36.65680547]
[1745909514871,0.03,148.12,148.1,18.64964886]
[1745909515182,0.03,148.12,148.11,38.00586994]
[1745909515381,0.03,148.12,148.11,118.90586994]
[1745909524091,1e-08,148.12,148.11,130.16037614]
[1745909526193,0.03,148.15,148.13,26.0]
[1745909526499,0.03,148.15,148.14,12.60406924]
[1745909527392,0.03,148.15,148.14,112.1537181]
[1745909528276,1e-08,148.16,148.15,18.64964886]
[1745909528481,1e-08,148.16,148.15,29.90415506]
[1745909530498,1e-08,148.16,148.15,36.65407068]
[1745909531415,1e-08,148.16,148.15,143.55407068]
[1745909531592,0.01,148.18,148.17,67.15866126]
[1745909531903,1e-08,148.19,148.18,18.64964886]
[1745909532216,1e-08,148.19,148.18,62.8562983]
[1745909532696,1e-08,148.19,148.18,61.50721032]
[1745909533294,1e-08,148.19,148.18,62.85628937]
[1745909533900,1e-08,148.19,148.18,143.75628937]
[1745909534213,1e-08,148.19,148.18,142.40721032]
[1745909538410,1e-08,148.2,148.18,142.40721032]
[1745909538590,1e-08,148.2,148.19,42.50764465]
[1745909540092,1e-08,148.2,148.19,49.25573831]
[1745909540927,1e-08,148.2,148.19,38.00123211]
[1745909541115,1e-08,148.2,148.19,49.25573831]
[1745909541417,1e-08,148.2,148.19,38.00123211]
[1745909541594,1e-08,148.2,148.19,49.25573831]
[1745909542512,1e-08,148.2,148.19,26.74672591]
[1745909542708,1e-08,148.2,148.19,38.00123211]
[1745909544031,1e-08,148.2,148.19,18.00259986]
[1745909544223,1e-08,148.2,148.19,6.74809366]
[1745909544406,1e-08,148.2,148.19,18.00259986]
[1745909544793,1e-08,148.2,148.18,101.24845975]
[1745909544999,1e-08,148.2,148.18,20.34845975]
[1745909545728,1e-08,148.2,148.18,13.6]
[1745909545729,11.25450621,148.2,148.18,13.6]
[1745909545898,11.2545062,148.19,148.17,6.74890615]
[1745909546326,11.25450621,148.2,148.16,11.2545062]
[1745909547839,11.25450621,148.2,148.17,6.74900452]
[1745909548041,11.25450621,148.2,148.14,137.35501242]
[1745909548243,11.2545062,148.19,148.15,18.00442182]
[1745909548437,11.2545062,148.19,148.15,6.74991562]
[1745909548637,11.25450621,148.2,148.16,11.2545062]
[1745909548954,1e-08,148.2,148.17,11.2545062]
[1745909549517,1e-08,148.2,148.15,24.97419288]
[1745909549518,1e-08,148.2,148.18,11.2545062]
[1745909549732,1e-08,148.2,148.19,18.00259986]
[1745909549913,1e-08,148.2,148.19,6.74809366]
[1745909551640,1e-08,148.2,148.19,18.00259986]
[1745909552817,1e-08,148.2,148.19,6.74809366]
[1745909554951,11.25450621,148.2,148.16,98.90367135]
[1745909555117,11.2545062,148.19,148.16,87.64916515]
[1745909555955,11.2545062,148.18,148.15,6.74975798]
[1745909556128,11.2545062,148.17,148.15,6.74975798]
[1745909556639,11.2545062,148.18,148.15,6.74975798]
[1745909558142,11.2545062,148.17,148.15,6.74975798]
[1745909559146,11.2545062,148.18,148.15,6.74975798]
[1745909559451,11.2545062,148.19,148.15,18.00426418]
[1745909560436,11.2545062,148.18,148.15,6.74975798]
[1745909561248,1e-08,148.2,148.16,11.2545062]
[1745909561624,1e-08,148.2,148.17,11.2545062]
[1745909562020,1e-08,148.2,148.19,11.2545062]
[1745909562221,1e-08,148.2,148.19,18.00259986]
[1745909564769,1e-08,148.2,148.19,6.74809366]
[1745909565263,1e-08,148.2,148.19,18.00259986]
[1745909567965,1e-08,148.2,148.19,36.65224872]
[1745909568165,1e-08,148.2,148.19,50.25224872]
[1745909568371,1e-08,148.2,148.19,61.50675492]
[1745909568838,1e-08,148.2,148.19,50.25224872]
[1745909569851,1e-08,148.2,148.19,61.50675492]
[1745909570038,1e-08,148.2,148.19,142.40675492]
[1745909583287,1e-08,148.2,148.19,168.40675492]
[1745909585677,1e-08,148.2,148.19,142.40675492]
[1745909587468,0.03,148.24,148.23,25.39592154]
[1745909587791,0.03,148.24,148.23,118.8992026]
[1745909589109,0.03,148.24,148.23,107.6446964]
[1745909589388,0.03,148.24,148.23,118.8992026]
[1745909589888,0.03,148.24,148.23,107.6446964]
[1745909590090,0.03,148.24,148.23,118.8992026]
[1745909593900,0.03,148.24,148.23,87.64627267]
[1745909599293,0.03,148.24,148.23,80.89999999]
[1745909599602,0.03,148.24,148.23,87.64627267]
[1745909601003,11.2845062,148.26,148.23,87.64627267]
[1745909601711,0.03,148.26,148.23,98.90077887]
[1745909602711,0.03,148.26,148.23,87.64627267]
[1745909603807,0.03,148.26,148.23,98.90077887]
[1745909604409,0.03,148.26,148.23,87.64627267]
[1745909604806,0.03,148.26,148.23,98.90077887]
[1745909604992,0.03,148.26,148.23,100.24968245]
[1745909606485,0.03,148.26,148.24,11.2545062]
[1745909607511,0.03,148.26,148.25,6.74536256]
[1745909609918,0.03,148.26,148.25,11.2545062]
[1745909610904,0.03,148.26,148.24,36.64997265]
[1745909614916,0.03,148.26,148.25,11.2545062]
[1745909616523,0.03,148.26,148.25,17.99986876]
[1745909619207,0.03,148.26,148.25,6.74536256]
[1745909620031,0.03,148.27,148.26,18.64964886]
[1745909620244,0.03,148.3,148.26,122.05866125]
[1745909620412,0.03,148.3,148.29,11.2545062]
[1745909621041,0.03,148.3,148.29,31.25251487]
[1745909621212,0.03,148.3,148.29,37.99605792]
[1745909621712,0.03,148.3,148.29,33.91462864]
[1745909622318,0.03,148.3,148.29,114.81462863]
[1745909623512,0.03,148.3,148.29,118.84692862]
[1745909627437,1e-08,148.3,148.29,118.84692862]
[1745909633841,10.07359587,148.34,148.33,18.64964886]
[1745909634031,0.03,148.35,148.33,136.88818449]
[1745909634234,0.03,148.35,148.34,29.85502577]
[1745909634437,0.03,148.39,148.35,18.64964886]
[1745909634616,0.03,148.39,148.38,29.85502577]
[1745909635023,0.03,148.39,148.38,43.43502577]
[1745909635932,0.03,148.39,148.38,20.31945275]
[1745909636533,0.03,148.39,148.38,13.58]
[1745909639853,11.23537691,148.39,148.38,13.58]
[1745909640052,11.23537691,148.39,148.35,94.47999999]
[1745909640223,11.20537691,148.37,148.35,94.47999999]
[1745909641247,11.20537691,148.36,148.32,80.89999999]
[1745909641454,1.5164,148.38,148.33,11.20537691]
[1745909641628,11.20537691,148.34,148.31,13.58]
[1745909641829,11.20537691,148.32,148.31,13.58]
[1745909642057,11.20537691,148.33,148.31,13.58]
[1745909643647,11.20537691,148.32,148.27,94.47999999]
[1745909643948,11.20537691,148.3,148.27,94.47999999]
[1745909644143,11.20537691,148.31,148.27,112.42966625]
[1745909644754,1.5548,148.32,148.27,112.42966625]
[1745909645235,11.20537691,148.31,148.27,112.42966625]
[1745909646256,11.20537691,148.31,148.27,101.22428934]
[1745909646459,11.20537691,148.31,148.27,112.42966625]
[1745909646831,11.20537691,148.31,148.27,101.22428934]
[1745909647029,11.20537691,148.31,148.27,112.42966625]
[1745909647256,11.20537691,148.31,148.28,17.94913462]
[1745909647861,11.20537691,148.31,148.28,6.74375771]
[1745909648450,11.20537691,148.31,148.28,17.94913462]
[1745909648651,11.20537691,148.31,148.28,6.74375771]
[1745909649461,11.20537691,148.3,148.28,6.74375771]
[1745909649651,11.20537691,148.3,148.27,112.42965826]
[1745909650162,11.20537691,148.31,148.27,112.42965826]
[1745909651168,1.5548,148.32,148.27,112.42965826]
[1745909651367,1.5548,148.32,148.28,17.94905576]
[1745909651565,11.20537691,148.31,148.28,6.74367885]
[1745909654277,1.5548,148.32,148.28,17.94905576]
[1745909654436,11.20537691,148.34,148.31,11.20537691]
[1745909654744,1.5827,148.36,148.31,11.20537691]
[1745909655148,11.20537691,148.34,148.31,11.20537691]
[1745909655457,11.20537691,148.35,148.32,11.20537691]
[1745909655659,11.20537691,148.35,148.31,11.20537691]
[1745909656362,1.5827,148.36,148.31,11.20537691]
[1745909656684,11.20537691,148.35,148.32,6.74217907]
[1745909657151,11.20537691,148.34,148.32,6.74217907]
[1745909657645,1.5827,148.36,148.32,11.20537691]
[1745909657849,11.20537691,148.35,148.32,11.20537691]
[1745909658274,11.20537691,148.35,148.31,11.20537691]
[1745909659134,11.20537691,148.34,148.3,17.94846524]
[1745909660066,11.20537691,148.35,148.31,11.20537691]
[1745909661155,1.5827,148.36,148.3,17.94846524]
[1745909661479,11.20537691,148.34,148.3,17.94846524]
[1745909662559,1.5827,148.36,148.3,17.94846524]
[1745909662761,11.20537691,148.34,148.3,17.94846524]
[1745909664484,1.5827,148.36,148.31,11.20537691]
[1745909664781,11.20537691,148.35,148.31,11.20537691]
[1745909664960,11.20537691,148.35,148.31,17.94758198]
[1745909667591,11.20537691,148.35,148.31,6.74220507]
[1745909667890,11.20537691,148.35,148.31,17.94758198]
[1745909668055,11.20537691,148.35,148.31,6.74220507]
[1745909668258,11.20537691,148.34,148.31,6.74220507]
[1745909668985,1.5827,148.36,148.31,6.74220507]
[1745909669162,11.20537691,148.33,148.3,6.74308833]
[1745909669987,1.5827,148.36,148.3,6.74308833]
[1745909670285,11.20537691,148.33,148.3,6.74308833]
[1745909670457,11.20537691,148.31,148.28,20.32360921]
[1745909670656,11.20537691,148.29,148.26,6.8077784]
[1745909670885,11.20537691,148.28,148.26,6.8077784]
[1745909672279,11.20537691,148.28,148.26,0.063]
[1745909679495,11.20537691,148.29,148.26,0.063]
[1745909680685,11.20537691,148.28,148.26,0.063]
[1745909684793,11.20537691,148.27,148.26,0.063]
[1745909687115,6.74340049,148.3,148.26,0.063]
[1745909687116,11.20537691,148.28,148.26,0.063]
[1745909687398,11.20537691,148.29,148.26,0.063]
[1745909688184,11.20537691,148.29,148.26,6.80790759]
[1745909688402,11.20537691,148.28,148.26,6.80790759]
[1745909688605,11.20537691,148.29,148.26,6.80790759]
[1745909689987,11.20537691,148.28,148.26,6.80790759]
[1745909690304,11.20537691,148.27,148.26,0.063]
[1745909691805,11.20537691,148.28,148.26,0.063]
[1745909697114,1.5976,148.31,148.26,6.80790759]
[1745909697288,11.20537691,148.29,148.26,6.80790759]
[1745909699127,11.20537691,148.28,148.26,6.80790759]
[1745909699798,11.20537691,148.27,148.26,0.063]
[1745909700014,1.5976,148.31,148.26,0.063]
[1745909700231,11.20537691,148.29,148.26,0.063]
[1745909700732,11.20537691,148.28,148.26,0.063]
[1745909700910,11.20537691,148.27,148.26,0.063]
[1745909702717,8.3403296,148.31,148.26,0.063]
[1745909702924,11.20537691,148.27,148.26,0.063]
[1745909707616,1.5976,148.31,148.26,0.063]
[1745909707819,11.20537691,148.27,148.26,0.063]
[1745909709536,7.18031849,148.27,148.26,0.063]
[1745909723748,13.92477117,148.27,148.26,0.063]
[1745909726339,82.9,148.3,148.26,0.063]
[1745909726673,7.18031849,148.28,148.26,0.063]
[1745909727171,1.5976,148.31,148.26,0.063]
[1745909727363,7.18031849,148.28,148.26,0.063]
[1745909727538,11.21696406,148.28,148.26,0.063]
[1745909728367,1.5976,148.31,148.26,0.063]
[1745909728568,11.21696406,148.28,148.26,0.063]
[1745909728942,1.5976,148.31,148.26,0.063]
[1745909729159,11.21696406,148.28,148.26,0.063]
[1745909729668,11.21696406,148.29,148.26,0.063]